fUST/lending_fUST_20250930
["ID","MTS","AMOUNT","RATE_DAILY","PERIOD"]
[388460775,1759177841363,-325.94661872,0.00022526,2]
[388460776,1759177841372,-480.0,0.00022526,2]
[388460777,1759177841381,-246.09808469,0.00022526,2]
[388460778,1759177841390,-653.59,0.00022526,2]
[388460779,1759177841400,-480.0,0.00022526,2]
[388460780,1759177841409,-480.0,0.00022526,2]
[388460781,1759177841418,-480.0,0.00022526,2]
[388460782,1759177841427,-480.0,0.00022526,2]
[388460783,1759177841436,-480.0,0.00022526,2]
[388460784,1759177841446,-480.0,0.00022526,2]
[388460785,1759177841455,-480.0,0.00022526,2]
[388460786,1759177841464,-480.0,0.00022526,2]
[388460787,1759177841473,-480.0,0.00022526,2]
[388460788,1759177841482,-480.0,0.00022526,2]
[388460789,1759177841491,-901.89,0.00022526,2]
[388460790,1759177841500,-480.0,0.00022526,2]
[388460791,1759177841509,-480.0,0.00022526,2]
[388460792,1759177841518,-480.0,0.00022526,2]
[388460793,1759177841527,-480.0,0.00022526,2]
[388460794,1759177841535,-480.0,0.00022526,2]
[388460795,1759177841544,-480.0,0.00022526,2]
[388460796,1759177841553,-480.0,0.00022526,2]
[388460797,1759177841562,-480.0,0.00022526,2]
[388460798,1759177841571,-480.0,0.00022526,2]
[388460799,1759177841580,-480.0,0.00022526,2]
[388460800,1759177841589,-480.0,0.00022526,2]
[388460801,1759177841598,-480.0,0.00022526,2]
[388460802,1759177841607,-480.0,0.00022526,2]
[388460803,1759177841616,-480.0,0.00022526,2]
[388460804,1759177841625,-480.0,0.00022526,2]
[388460805,1759177841634,-480.0,0.00022526,2]
[388460806,1759177841642,-500.0,0.00022526,2]
[388460807,1759177841652,-480.0,0.00022526,2]
[388460808,1759177841661,-404.06112888,0.00022526,2]
[388460809,1759177841670,-387.44940287,0.00022526,2]
[388460810,1759177841679,-480.0,0.00022526,2]
[388460811,1759177841688,-480.0,0.00022526,2]
[388460812,1759177841697,-480.0,0.00022526,2]
[388460813,1759177841706,-480.0,0.00022526,2]
[388460814,1759177841716,-480.0,0.00022526,2]
[388460815,1759177841725,-480.0,0.00022526,2]
[388460816,1759177841734,-963.34,0.00022526,2]
[388460817,1759177841743,-480.0,0.00022526,2]
[388460818,1759177841752,-480.0,0.00022526,2]
[388460819,1759177841762,-480.0,0.00022526,2]
[388460820,1759177841770,-480.0,0.00022526,2]
[388460821,1759177841779,-151.02982907,0.00022526,2]
[388460822,1759177841788,-782.75,0.00022526,2]
[388460823,1759177841797,-480.0,0.00022526,2]
[388460824,1759177841806,-480.0,0.00022526,2]
[388460825,1759177841815,-480.0,0.00022526,2]
[388460826,1759177841824,-480.0,0.00022526,2]
[388460827,1759177841833,-480.0,0.00022526,2]
[388460828,1759177841843,-704.48,0.00022526,2]
[388460829,1759177841852,-480.0,0.00022526,2]
[388460830,1759177841861,-480.0,0.00022526,2]
[388460831,1759177841870,-480.0,0.00022526,2]
[388460832,1759177841879,-480.0,0.00022526,2]
[388460833,1759177841888,-480.0,0.00022526,2]
[388460834,1759177841900,-480.0,0.00022526,2]
[388460835,1759177841910,-480.0,0.00022526,2]
[388460836,1759177841920,-480.0,0.00022526,2]
[388460837,1759177841929,-480.0,0.00022526,2]
[388460838,1759177841938,-480.0,0.00022526,2]
[388460839,1759177841947,-500.0,0.00022527,2]
[388460840,1759177841956,-523.21,0.00022527,2]
[388460841,1759177841966,-1535.7,0.00022527,2]
[388460842,1759177841975,-480.0,0.00022527,2]
[388460843,1759177841984,-490.42,0.00022527,2]
[388460844,1759177841993,-480.0,0.00022527,2]
[388460845,1759177842002,-480.0,0.00022527,2]
[388460846,1759177842011,-439.4,0.00022527,2]
[388460847,1759177842021,-480.0,0.00022527,2]
[388460848,1759177842030,-480.0,0.00022527,2]
[388460849,1759177842039,-480.0,0.00022527,2]
[388460850,1759177842048,-480.0,0.00022527,2]
[388460851,1759177842057,-559.72,0.00022527,2]
[388460852,1759177842066,-480.0,0.00022527,2]
[388460853,1759177842076,-480.0,0.00022527,2]
[388460854,1759177842085,-1004.08,0.00022527,2]
[388460855,1759177842094,-480.0,0.00022527,2]
[388460856,1759177842104,-481.57,0.00022527,2]
[388460857,1759177842113,-483.12,0.00022527,2]
[388460858,1759177842122,-480.0,0.00022527,2]
[388460859,1759177842132,-519.3,0.00022527,2]
[388460860,1759177842142,-480.0,0.00022527,2]
[388460861,1759177842152,-480.0,0.00022527,2]
[388460862,1759177842161,-564.54,0.00022527,2]
[388460863,1759177842172,-1404.16,0.00022527,2]
[388460864,1759177842181,-480.0,0.00022527,2]
[388460865,1759177842190,-480.0,0.00022527,2]
[388460866,1759177842199,-480.0,0.00022527,2]
[388460867,1759177842209,-480.0,0.00022527,2]
[388460868,1759177842219,-545.16,0.00022527,2]
[388460869,1759177842229,-480.0,0.00022527,2]
[388460870,1759177842238,-480.0,0.00022529,2]
[388460871,1759177842249,-480.0,0.0002253,2]
[388460872,1759177842259,-480.0,0.0002253,2]
[388460873,1759177842268,-480.0,0.00022531,2]
[388460874,1759177842280,-480.0,0.00022531,2]
[388460875,1759177842289,-480.0,0.00022531,2]
[388460876,1759177842299,-480.0,0.00022531,2]
[388460877,1759177842308,-1003.70250769,0.00022563,2]
[388460878,1759177842317,-500.0,0.00022573,2]
[388460879,1759177842326,-338.07728549,0.00022573,2]
[388460880,1759177842336,-500.0,0.00022573,2]
[388460881,1759177842345,-500.0,0.00022573,2]
[388460882,1759177842354,-500.0,0.00022573,2]
[388460883,1759177842363,-611.91719024,0.00022573,2]
[388460884,1759177842372,-458.32854004,0.00022573,2]
[388460885,1759177842382,-500.0,0.00022573,2]
[388460886,1759177842391,-500.0,0.00022573,2]
[388460887,1759177842405,-500.0,0.00022573,2]
[388460888,1759177842414,-500.0,0.00022573,2]
[388460889,1759177842424,-24548.39820921,0.00022698,2]
[388460890,1759177842434,-1003.70250769,0.000227,2]
[388460891,1759177842443,-162.424336,0.000227,2]
[388460892,1759177842452,-297.0711174,0.000227,2]
[388460893,1759177842462,-188.6808089,0.000227,2]
[388460894,1759177842472,-202.24021921,0.00022712,2]
[388460895,1759177842481,-1000.0,0.00022712,2]
[388460896,1759177842490,-975.65501342,0.00022712,2]
[388460897,1759177842500,-500.0,0.00022712,2]
[388460898,1759177842510,-500.0,0.00022712,2]
[388460899,1759177842519,-500.0,0.00022712,2]
[388460900,1759177842528,-500.0,0.00022712,2]
[388460901,1759177842537,-500.0,0.00022712,2]
[388460902,1759177842547,-500.0,0.00022712,2]
[388460903,1759177842556,-500.0,0.00022712,2]
[388460904,1759177842565,-500.0,0.00022712,2]
[388460905,1759177842574,-500.0,0.00022712,2]
[388460906,1759177842583,-500.0,0.00022712,2]
[388460907,1759177842592,-255.55003982,0.00022712,2]
[388460908,1759177842601,-151.0,0.00022712,2]
[388460909,1759177842610,-370000.0,0.00022726,2]
[388460910,1759177842620,-504.13971878,0.00022773,2]
[388460911,1759177842629,-500.0,0.00022773,2]
[388460912,1759177842638,-508.7699855,0.00022773,2]
[388460913,1759177842648,-500.0,0.00022773,2]
[388460914,1759177842657,-500.0,0.00022773,2]
[388460915,1759177842666,-500.0,0.00022773,2]
[388460916,1759177842676,-578.408847,0.00022773,2]
[388460917,1759177842685,-500.0,0.00022773,2]
[388460918,1759177842694,-500.0,0.00022773,2]
[388460919,1759177842703,-150.0,0.00022773,2]
[388460920,1759177842713,-500.0,0.00022773,2]
[388460921,1759177842723,-500.0,0.00022773,2]
[388460922,1759177842732,-500.0,0.00022773,2]
[388460923,1759177842741,-500.0,0.00022773,2]
[388460924,1759177842751,-500.0,0.00022773,2]
[388460925,1759177842760,-500.0,0.00022773,2]
[388460926,1759177842770,-431.25894735,0.00022773,2]
[388460927,1759177842779,-500.0,0.00022773,2]
[388460928,1759177842788,-500.0,0.00022773,2]
[388460929,1759177842797,-500.0,0.00022773,2]
[388460930,1759177842806,-163.72715987,0.00022773,2]
[388460931,1759177842815,-500.0,0.00022773,2]
[388460932,1759177842825,-500.0,0.00022773,2]
[388460933,1759177842834,-597.16968097,0.00022773,2]
[388460934,1759177842843,-500.0,0.00022773,2]
[388460935,1759177842852,-500.0,0.00022773,2]
[388460937,1759177842862,-480.0,0.00022797,2]
[388460938,1759177842871,-639.21,0.00022797,2]
[388460939,1759177842880,-480.0,0.00022797,2]
[388460940,1759177842889,-480.0,0.00022797,2]
[388460941,1759177842902,-407.1110357,0.00022798,2]
[388460942,1759177842911,-480.0,0.00022798,2]
[388460944,1759177842920,-480.0,0.00022798,2]
[388460946,1759177842931,-480.0,0.00022798,2]
[388460948,1759177842939,-528.54,0.00022798,2]
[388460950,1759177842948,-480.0,0.00022798,2]
[388460952,1759177842958,-295.60054074,0.00022798,2]
[388460954,1759177842967,-718.32,0.00022798,2]
[388460955,1759177842976,-480.0,0.00022798,2]
[388460956,1759177842985,-724.29,0.00022798,2]
[388460957,1759177842995,-480.0,0.00022798,2]
[388460958,1759177843004,-480.0,0.00022798,2]
[388460959,1759177843013,-1013.43,0.00022798,2]
[388460960,1759177843023,-480.0,0.00022798,2]
[388460961,1759177843032,-480.0,0.00022798,2]
[388460962,1759177843042,-1385.08,0.00022798,2]
[388460963,1759177843051,-480.0,0.00022798,2]
[388460964,1759177843060,-480.0,0.00022798,2]
[388460965,1759177843070,-480.0,0.00022798,2]
[388460966,1759177843080,-480.0,0.00022798,2]
[388460967,1759177843089,-480.0,0.00022798,2]
[388460968,1759177843099,-466.12167484,0.00022798,2]
[388460974,1759177843442,-381.31832516,0.00022798,2]
[388460975,1759177843452,-480.0,0.00022798,2]
[388460976,1759177843461,-731.01,0.00022798,2]
[388460977,1759177843470,-552.03,0.00022798,2]
[388460978,1759177843480,-480.0,0.00022798,2]
[388460979,1759177843490,-480.0,0.00022798,2]
[388460980,1759177843499,-1216.11,0.00022798,2]
[388460981,1759177843508,-158.38992036,0.00022798,2]
[388460982,1759177843517,-480.0,0.00022798,2]
[388460983,1759177843526,-480.0,0.00022798,2]
[388460984,1759177843536,-1144.94578408,0.00022798,2]
[388460985,1759177843547,-1115.01421592,0.00022798,2]
[388460986,1759177843557,-480.0,0.00022798,2]
[388460987,1759177843566,-3575.53109809,0.00022798,2]
[388460991,1759177843740,-480.0,0.00022251,2]
[388460992,1759177843749,-169.63,0.00022514,10]
[388460993,1759177843758,-1850.71890191,0.00022798,2]
[388460994,1759177843767,-2238.69,0.00022798,2]
[388460995,1759177843775,-480.0,0.00022798,2]
[388460996,1759177843784,-213.57931004,0.00022798,2]
[388460997,1759177843793,-573.49,0.00022798,2]
[388460998,1759177843802,-566.07,0.00022798,2]
[388460999,1759177843810,-895.24,0.00022798,2]
[388461000,1759177843820,-480.0,0.00022798,2]
[388461001,1759177843829,-1577.01,0.00022798,2]
[388461002,1759177843837,-480.0,0.00022798,2]
[388461003,1759177843846,-480.0,0.00022798,2]
[388461004,1759177843855,-988.05,0.00022798,2]
[388461005,1759177843864,-480.0,0.00022798,2]
[388461006,1759177843873,-1734.97,0.00022798,2]
[388461007,1759177843882,-599.4,0.00022798,2]
[388461008,1759177843891,-1488.46,0.00022798,2]
[388461009,1759177843902,-709.59,0.00022798,2]
[388461010,1759177843912,-480.0,0.00022798,2]
[388461011,1759177843921,-707.68,0.00022798,2]
[388461012,1759177843930,-1259.76,0.00022798,2]
[388461013,1759177843939,-624.05,0.00022798,2]
[388461014,1759177843948,-480.0,0.00022798,2]
[388461015,1759177843956,-480.0,0.00022799,2]
[388461016,1759177843965,-906.71,0.00022799,2]
[388461017,1759177843975,-480.0,0.00022799,2]
[388461018,1759177843984,-480.0,0.00022799,2]
[388461019,1759177843992,-480.0,0.00022799,2]
[388461020,1759177844001,-480.0,0.00022799,2]
[388461021,1759177844010,-480.0,0.00022799,2]
[388461022,1759177844019,-480.0,0.00022799,2]
[388461023,1759177844028,-930.4,0.00022799,2]
[388461024,1759177844037,-628.52,0.00022799,2]
[388461025,1759177844046,-641.21,0.00022799,2]
[388461026,1759177844055,-480.0,0.00022799,2]
[388461027,1759177844063,-480.0,0.00022799,2]
[388461028,1759177844072,-485.91,0.00022799,2]
[388461029,1759177844081,-480.0,0.00022799,2]
[388461030,1759177844090,-480.0,0.00022799,2]
[388461031,1759177844099,-827.67,0.00022799,2]
[388461032,1759177844108,-480.0,0.00022799,2]
[388461033,1759177844118,-480.0,0.00022799,2]
[388461034,1759177844127,-480.0,0.00022799,2]
[388461035,1759177844137,-480.0,0.00022799,2]
[388461036,1759177844146,-480.0,0.00022799,2]
[388461037,1759177844154,-480.0,0.00022799,2]
[388461038,1759177844163,-480.0,0.00022799,2]
[388461039,1759177844172,-593.31,0.00022799,2]
[388461040,1759177844181,-480.0,0.00022799,2]
[388461041,1759177844190,-480.0,0.00022799,2]
[388461042,1759177844198,-480.0,0.00022799,2]
[388461043,1759177844207,-495.46,0.00022799,2]
[388461044,1759177844218,-508.98,0.00022799,2]
[388461045,1759177844227,-480.0,0.00022799,2]
[388461046,1759177844236,-480.0,0.00022799,2]
[388461047,1759177844245,-480.0,0.00022799,2]
[388461048,1759177844254,-480.0,0.00022799,2]
[388461049,1759177844263,-3219.77,0.00022799,2]
[388461050,1759177844272,-480.0,0.00022799,2]
[388461051,1759177844281,-507.73,0.00022799,2]
[388461052,1759177844289,-1284.07,0.00022799,2]
[388461053,1759177844298,-667.51,0.00022799,2]
[388461054,1759177844307,-173.52140179,0.00022799,2]
[388461055,1759177844316,-492.97,0.00022799,2]
[388461056,1759177844325,-480.0,0.00022799,2]
[388461057,1759177844335,-633.99,0.00022799,2]
[388461058,1759177844344,-480.0,0.00022799,2]
[388461059,1759177844353,-480.0,0.00022799,2]
[388461060,1759177844362,-3026.87,0.00022799,2]
[388461061,1759177844371,-480.0,0.00022799,2]
[388461062,1759177844380,-491.93,0.00022799,2]
[388461063,1759177844389,-480.0,0.00022799,2]
[388461064,1759177844398,-1314.77,0.00022799,2]
[388461065,1759177844407,-480.0,0.00022799,2]
[388461066,1759177844416,-480.0,0.00022799,2]
[388461067,1759177844425,-480.0,0.00022799,2]
[388461068,1759177844434,-515.58,0.00022799,2]
[388461069,1759177844443,-705.88,0.00022799,2]
[388461070,1759177844452,-480.0,0.00022799,2]
[388461071,1759177844460,-2604.36,0.00022799,2]
[388461072,1759177844470,-1100.03,0.00022799,2]
[388461073,1759177844479,-480.0,0.00022799,2]
[388461074,1759177844487,-714.01,0.00022799,2]
[388461075,1759177844496,-480.0,0.00022799,2]
[388461076,1759177844505,-480.0,0.00022799,2]
[388461077,1759177844514,-480.0,0.00022799,2]
[388461078,1759177844522,-480.0,0.00022799,2]
[388461079,1759177844531,-1093.12,0.00022799,2]
[388461080,1759177844540,-767.65,0.00022799,2]
[388461081,1759177844549,-1336.86,0.00022799,2]
[388461082,1759177844558,-621.87,0.00022799,2]
[388461083,1759177844568,-513.68,0.00022799,2]
[388461084,1759177844576,-480.0,0.00022799,2]
[388461085,1759177844585,-1348.16,0.00022799,2]
[388461086,1759177844594,-699.78,0.00022799,2]
[388461087,1759177844603,-480.0,0.00022799,2]
[388461088,1759177844611,-515.06,0.00022799,2]
[388461089,1759177844620,-480.0,0.00022799,2]
[388461090,1759177844629,-564.89,0.00022799,2]
[388461091,1759177844638,-539.31820529,0.00022799,2]
[388461092,1759177844646,-480.0,0.000228,2]
[388461093,1759177844655,-480.0,0.000228,2]
[388461094,1759177844664,-480.0,0.000228,2]
[388461095,1759177844673,-480.0,0.000228,2]
[388461096,1759177844682,-480.0,0.000228,2]
[388461097,1759177844690,-480.0,0.000228,2]
[388461098,1759177844699,-480.0,0.000228,2]
[388461099,1759177844708,-480.0,0.000228,2]
[388461100,1759177844716,-991.99883917,0.000228,2]
[388461101,1759177844935,480.0,0.0002225,2]
[388461102,1759177844950,-480.0,0.00022252,2]
[388461103,1759177844959,-480.0,0.00022524,2]
[388461104,1759177844968,-82.09050609,0.000228,2]
[388461105,1759177844979,-4694.17065474,0.000228,2]
[388461106,1759177844987,-480.0,0.000228,2]
[388461107,1759177844997,-480.0,0.000228,2]
[388461108,1759177845006,-457.97399391,0.000228,2]
[388461109,1759177845015,-480.0,0.000228,2]
[388461110,1759177845023,-480.0,0.000228,2]
[388461111,1759177845032,-480.0,0.000228,2]
[388461112,1759177845041,-224.55622408,0.000228,2]
[388461113,1759177845052,-255.44377592,0.000228,2]
[388461114,1759177845062,-480.0,0.000228,2]
[388461115,1759177845071,-127.81622407,0.000228,2]
[388461116,1759177845083,-352.18377593,0.000228,2]
[388461117,1759177845092,-480.0,0.000228,2]
[388461118,1759177845101,-480.0,0.000228,2]
[388461119,1759177845110,-480.0,0.000228,2]
[388461120,1759177845119,-372.36234554,0.000228,2]
[388461121,1759177845128,-75.27316858,0.000228,2]
[388461122,1759177845139,-404.72683142,0.000228,2]
[388461123,1759177845149,-518.15,0.000228,2]
[388461124,1759177845158,-480.0,0.000228,2]
[388461125,1759177845168,-480.0,0.000228,2]
[388461126,1759177845177,-480.0,0.000228,2]
[388461127,1759177845186,-480.0,0.000228,2]
[388461128,1759177845195,-432.77,0.000228,2]
[388461129,1759177845204,-534.53,0.000228,2]
[388461130,1759177845213,-480.0,0.000228,2]
[388461131,1759177845222,-480.0,0.000228,2]
[388461132,1759177845230,-480.0,0.000228,2]
[388461133,1759177845239,-653.59,0.000228,2]
[388461134,1759177845248,-480.0,0.000228,2]
[388461135,1759177845256,-480.0,0.000228,2]
[388461136,1759177845265,-480.0,0.000228,2]
[388461137,1759177845274,-480.0,0.000228,2]
[388461138,1759177845283,-480.0,0.000228,2]
[388461139,1759177845292,-470.23570814,0.000228,2]
[388461140,1759177845300,-901.89,0.000228,2]
[388461141,1759177845309,-480.0,0.000228,2]
[388461142,1759177845318,-480.0,0.000228,2]
[388461143,1759177845327,-480.0,0.000228,2]
[388461144,1759177845335,-480.0,0.000228,2]
[388461145,1759177845346,-480.0,0.000228,2]
[388461146,1759177845393,-480.0,0.000228,2]
[388461147,1759177845402,-480.0,0.000228,2]
[388461148,1759177845410,-480.0,0.000228,2]
[388461149,1759177845419,-480.0,0.000228,2]
[388461150,1759177845428,-480.0,0.000228,2]
[388461151,1759177845436,-480.0,0.000228,2]
[388461152,1759177845445,-480.0,0.000228,2]
[388461153,1759177845453,-480.0,0.000228,2]
[388461154,1759177845462,-480.0,0.000228,2]
[388461155,1759177845471,-480.0,0.000228,2]
[388461156,1759177845480,-480.0,0.000228,2]
[388461157,1759177845488,-401.28323196,0.000228,2]
[388461158,1759177845499,-98.71676804,0.000228,2]
[388461159,1759177845507,-591.98192865,0.000228,2]
[388461160,1759177845516,-334.9905034,0.000228,2]
[388461161,1759177845809,480.0,0.0002225,2]
[388461162,1759177845946,480.0,0.00022249,2]
[388461163,1759177846502,-480.0,0.00022523,2]
[388461164,1759177846511,-486.88,0.00022524,2]
[388461165,1759177846521,-145.0094966,0.000228,2]
[388461166,1759177846530,-480.0,0.000228,2]
[388461167,1759177846539,-480.0,0.000228,2]
[388461168,1759177846548,-480.0,0.000228,2]
[388461169,1759177846556,-480.0,0.000228,2]
[388461170,1759177846565,-963.34,0.000228,2]
[388461171,1759177846574,-480.0,0.000228,2]
[388461172,1759177846583,-480.0,0.000228,2]
[388461173,1759177846591,-480.0,0.000228,2]
[388461174,1759177846600,-480.0,0.000228,2]
[388461175,1759177846608,-782.75,0.000228,2]
[388461176,1759177846617,-480.0,0.000228,2]
[388461177,1759177846626,-480.0,0.000228,2]
[388461178,1759177846634,-480.0,0.000228,2]
[388461179,1759177846643,-480.0,0.000228,2]
[388461180,1759177846652,-480.0,0.000228,2]
[388461182,1759177846661,-704.48,0.000228,2]
[388461183,1759177846670,-480.0,0.000228,2]
[388461184,1759177846678,-480.0,0.000228,2]
[388461186,1759177846687,-480.0,0.000228,2]
[388461188,1759177846696,-480.0,0.000228,2]
[388461190,1759177846704,-480.0,0.000228,2]
[388461191,1759177846713,-480.0,0.000228,2]
[388461193,1759177846721,-480.0,0.000228,2]
[388461194,1759177846730,-162.424336,0.000228,2]
[388461195,1759177846739,-153.0,0.000228,2]
[388461196,1759177846747,-480.0,0.000228,2]
[388461198,1759177846756,-480.0,0.000228,2]
[388461199,1759177846764,-500.0,0.00022801,2]
[388461201,1759177846773,-1535.7,0.00022801,2]
[388461202,1759177846782,-480.0,0.00022801,2]
[388461204,1759177846791,-490.42,0.00022801,2]
[388461205,1759177846799,-480.0,0.00022801,2]
[388461206,1759177846808,-480.0,0.00022801,2]
[388461207,1759177846816,-480.0,0.00022801,2]
[388461208,1759177846825,-480.0,0.00022801,2]
[388461209,1759177846833,-480.0,0.00022801,2]
[388461210,1759177846842,-559.72,0.00022801,2]
[388461211,1759177846851,-480.0,0.00022801,2]
[388461212,1759177846859,-480.0,0.00022801,2]
[388461213,1759177846868,-1004.08,0.00022801,2]
[388461214,1759177846880,-480.0,0.00022801,2]
[388461215,1759177846894,-138.5436358,0.00022801,2]
[388461216,1759177846911,-343.0263642,0.00022801,2]
[388461217,1759177846920,-483.12,0.00022801,2]
[388461218,1759177846930,-480.0,0.00022801,2]
[388461219,1759177846939,-519.3,0.00022801,2]
[388461220,1759177846948,-480.0,0.00022801,2]
[388461221,1759177846958,-480.0,0.00022801,2]
[388461222,1759177846966,-564.54,0.00022801,2]
[388461223,1759177846975,-1404.16,0.00022801,2]
[388461224,1759177846983,-480.0,0.00022801,2]
[388461225,1759177846992,-480.0,0.00022801,2]
[388461226,1759177847001,-480.0,0.00022801,2]
[388461227,1759177847009,-480.0,0.00022801,2]
[388461228,1759177847018,-545.16,0.00022801,2]
[388461229,1759177847027,-480.0,0.00022801,2]
[388461230,1759177847036,-480.0,0.00022802,2]
[388461231,1759177847045,-480.0,0.00022802,2]
[388461232,1759177847054,-480.0,0.00022803,2]
[388461233,1759177847063,-480.0,0.00022804,2]
[388461234,1759177847072,-480.0,0.00022804,2]
[388461235,1759177847081,-480.0,0.00022805,2]
[388461236,1759177847090,-480.0,0.00022805,2]
[388461237,1759177847099,-1000.0,0.00022821,2]
[388461238,1759177847108,-1000.0,0.00022821,2]
[388461239,1759177847117,-294.39198001,0.00022821,2]
[388461240,1759177847126,-1000.0,0.00022821,2]
[388461241,1759177847135,-1000.0,0.00022821,2]
[388461242,1759177847144,-672.82693927,0.00022821,2]
[388461243,1759177847154,-1000.0,0.00022821,2]
[388461244,1759177847162,-1000.0,0.00022821,2]
[388461245,1759177847171,-1003.70250769,0.00022838,2]
[388461246,1759177847180,-1003.70250769,0.00022975,2]
[388461247,1759177847189,-176.55544409,0.00022976,2]
[388461248,1759177847198,-30285.55161872,0.0002299,2]
[388461249,1759177847209,-669.35451269,0.0002299,2]
[388461250,1759177847229,-480.0,0.00022797,2]
[388461251,1759177847239,-340.62939,0.0002299,2]
[388461252,1759177847271,480.0,0.00022249,2]
[388461253,1759177848048,709.7,0.0002225,2]
[388461254,1759177849109,480.0,0.00022249,2]
[388461255,1759177854477,480.0,0.00022249,2]
[388461256,1759177861072,480.0,0.00022249,2]
[388461257,1759177861293,480.0,0.00022249,2]
[388461258,1759177862018,-207.27394768,0.0002225,2]
[388461259,1759177862150,1158.6503744,0.00021685,2]
[388461262,1759177866659,480.0,0.00022249,2]
[388461263,1759177870648,480.0,0.00022249,2]
[388461264,1759177874974,881.66,0.00022249,2]
[388461265,1759177875080,611.79429863,0.00022249,2]
[388461268,1759177902750,480.0,0.00022249,2]
[388461269,1759177902856,480.0,0.00022249,2]
[388461270,1759177906109,480.0,0.00022249,2]
[388461271,1759177912409,480.0,0.00022249,2]
[388461272,1759177915106,480.0,0.00022249,2]
[388461273,1759177922316,300.0,0.00022249,2]
[388461274,1759177923615,480.0,0.00022249,2]
[388461276,1759177932582,480.0,0.00022249,2]
[388461277,1759177933527,480.0,0.00022249,2]
[388461278,1759177934106,480.0,0.00022249,2]
[388461279,1759177936862,480.0,0.00022249,2]
[388461280,1759177937806,480.0,0.00022249,2]
[388461281,1759177939697,1200.0,0.00022249,2]
[388461282,1759177940668,201.94616361,0.00022249,2]
[388461283,1759177941513,636.19,0.00022249,2]
[388461284,1759177942112,480.0,0.00022249,2]
[388461285,1759177943467,480.0,0.00022249,2]
[388461286,1759177947245,480.0,0.00022249,2]
[388461289,1759177950586,480.0,0.00022249,2]
[388461290,1759177951189,480.0,0.00022249,2]
[388461291,1759177955612,480.0,0.00022249,2]
[388461292,1759177957657,480.0,0.00022249,2]
[388461293,1759177965054,461.87383639,0.00022249,2]
[388461294,1759177965078,18.12616361,0.00022249,2]
[388461295,1759177970003,869.74,0.00022249,2]
[388461296,1759177975413,628.36,0.00022249,2]
[388461297,1759177978585,639.73,0.00022249,2]
[388461298,1759177980366,480.0,0.00022249,2]
[388461299,1759177982269,300.0,0.00022249,2]
[388461300,1759177983566,480.0,0.00022249,2]
[388461301,1759177983661,480.0,0.00022249,2]
[388461302,1759177995059,480.0,0.00022249,2]
[388461303,1759177998319,480.0,0.00022249,2]
[388461304,1759178001001,480.0,0.00022249,2]